bitfinex/quotes_SOLUSD_20240613
["timestamp","ask_amount","ask_price","bid_price","bid_amount"]
[1718282971676,100.0,150.57,150.46,0.34]
[1718282971856,100.0,150.54,150.46,45.0]
[1718282972358,100.0,150.56,150.45,6.513]
[1718282972865,100.0,150.54,150.45,6.513]
[1718282973241,0.17,150.55,150.45,6.513]
[1718282973459,100.68,150.55,150.45,6.513]
[1718282973661,120.68,150.55,150.45,6.513]
[1718282973876,6.86978106,150.57,150.47,0.17]
[1718282974063,100.0,150.59,150.47,0.17]
[1718282974877,100.0,150.55,150.46,45.0]
[1718282975067,100.0,150.53,150.45,6.513]
[1718282975493,100.0,150.56,150.45,6.513]
[1718282975695,100.0,150.56,150.46,45.0]
[1718282975996,20.17,150.55,150.46,45.0]
[1718282976203,100.0,150.53,150.45,6.513]
[1718282976879,20.17,150.52,150.45,6.513]
[1718282977294,100.0,150.49,150.43,16.1008]
[1718282977502,0.34,150.51,150.43,16.1008]
[1718282977503,100.0,150.47,150.43,16.1008]
[1718282977707,100.0,150.47,150.41,6.3958]
[1718282978480,20.0,150.46,150.41,6.3958]
[1718282978980,100.0,150.45,150.41,6.3958]
[1718282979382,100.0,150.45,150.39,15.6105]
[1718282979691,20.0,150.44,150.39,15.6105]
[1718282981096,100.0,150.48,150.39,15.6105]
[1718282981590,0.51,150.47,150.39,15.6105]
[1718282981893,100.0,150.48,150.39,15.6105]
[1718282982475,100.0,150.46,150.39,15.6105]
[1718282983474,20.0,150.45,150.39,15.6105]
[1718282983886,0.17,150.44,150.39,15.6105]
[1718282984082,0.68,150.44,150.39,15.6105]
[1718282984496,20.0,150.45,150.39,15.6105]
[1718282984884,100.0,150.44,150.39,15.6105]
[1718282985284,20.0,150.45,150.39,15.6105]
[1718282986303,100.0,150.44,150.39,15.6105]
[1718282986609,20.0,150.43,150.37,6.162]
[1718282987214,100.34,150.42,150.35,15.6122]
[1718282987410,100.51,150.42,150.35,15.6122]
[1718282987616,100.0,150.4,150.35,15.6122]
[1718282987981,20.0,150.41,150.35,15.6122]
[1718282988182,20.0,150.42,150.35,15.6122]
[1718282988616,20.0,150.44,150.35,15.6122]
[1718282988919,100.0,150.43,150.35,15.6122]
[1718282989117,20.0,150.42,150.35,15.6122]
[1718282989292,100.0,150.43,150.35,15.6122]
[1718282989493,20.0,150.42,150.35,15.6122]
[1718282989978,20.17,150.44,150.35,15.6122]
[1718282990192,100.17,150.43,150.35,15.6122]
[1718282990397,0.17,150.42,150.35,15.6122]
[1718282990620,20.51,150.42,150.35,15.6122]
[1718282991005,20.0,150.42,150.35,15.6122]
[1718282992619,100.0,150.41,150.35,15.6122]
[1718282992926,20.0,150.4,150.35,15.6122]
[1718282993626,100.0,150.41,150.35,15.6122]
[1718282994010,20.34,150.4,150.33,6.3463]
[1718282994215,20.68,150.4,150.33,6.3463]
[1718282994423,20.51,150.4,150.33,6.3463]
[1718282995704,100.0,150.39,150.33,6.3463]
[1718282996125,20.0,150.38,150.33,6.3463]
[1718282997450,100.34,150.37,150.31,15.7767]
[1718282997607,20.34,150.36,150.31,15.7767]
[1718282998415,100.0,150.35,150.31,15.7767]
[1718282998611,20.0,150.34,150.31,15.7767]
[1718282999511,20.34,150.36,150.31,15.7767]
[1718283000231,20.0,150.36,150.31,15.7767]
[1718283001504,100.17,150.35,150.31,15.7767]
[1718283001722,100.51,150.35,150.29,6.4725]
[1718283001919,20.0,150.34,150.29,6.4725]
[1718283005433,20.0,150.36,150.29,6.4725]
[1718283006126,100.0,150.35,150.29,6.4725]
[1718283006639,20.0,150.34,150.29,6.4725]
[1718283008035,100.0,150.41,150.29,6.4725]
[1718283008224,100.0,150.39,150.3,45.0]
[1718283008420,100.0,150.39,150.29,6.4725]
[1718283008633,6.88033611,150.4,150.29,6.4725]
[1718283008977,100.0,150.39,150.3,45.0]
[1718283009240,100.0,150.37,150.29,6.4725]
[1718283009813,106.88067295,150.4,150.29,6.4725]
[1718283009814,100.0,150.35,150.29,6.4725]
[1718283010034,20.0,150.34,150.29,6.4725]
[1718283010436,100.0,150.37,150.29,6.4725]
[1718283010437,0.17,150.36,150.29,6.4725]
[1718283010617,20.0,150.36,150.29,6.4725]
[1718283011152,125.5,150.41,150.3,45.0]
[1718283011331,100.0,150.38,150.29,6.4725]
[1718283011534,20.0,150.37,150.29,6.4725]
[1718283011843,100.0,150.42,150.3,45.34]
[1718283012142,100.0,150.42,150.32,16.2908]
[1718283013247,0.17,150.41,150.32,16.2908]
[1718283013554,100.0,150.36,150.32,16.2908]
[1718283013759,100.0,150.36,150.29,6.4725]
[1718283013760,20.0,150.35,150.29,6.4725]
[1718283014721,20.17,150.37,150.29,6.4725]
[1718283015156,100.34,150.36,150.29,6.4725]
[1718283015325,20.0,150.35,150.29,6.4725]
[1718283018632,100.0,150.34,150.28,15.8338]
[1718283018948,100.0,150.32,150.28,15.8338]
[1718283019325,20.17,150.35,150.25,6.8458888]
[1718283019531,100.0,150.34,150.25,6.8458888]
[1718283019754,20.0,150.33,150.25,6.8458888]
[1718283019932,20.17,150.35,150.25,6.8458888]
[1718283020253,20.0,150.35,150.25,9.3083888]
[1718283020452,20.0,150.35,150.26,45.17]
[1718283020769,100.17,150.34,150.25,6.8458888]
[1718283021560,100.0,150.32,150.25,6.8458888]
[1718283021949,0.34,150.31,150.25,6.8458888]
[1718283022150,100.0,150.3,150.25,6.8458888]
[1718283022664,20.0,150.29,150.25,6.8458888]
[1718283023527,20.0,150.31,150.25,6.8458888]
[1718283024147,100.0,150.32,150.25,6.8458888]
[1718283024455,20.68,150.31,150.25,6.8458888]
[1718283024952,100.0,150.3,150.25,6.8458888]
[1718283025359,20.0,150.29,150.25,6.8458888]
[1718283026638,20.0,150.29,150.25,0.8040888]
[1718283027453,100.17,150.28,150.25,0.8040888]
[1718283029477,20.51,150.29,150.25,0.8040888]
[1718283029686,100.0,150.28,150.25,0.8040888]
[1718283030180,100.17,150.26,150.25,0.8040888]
[1718283030386,100.68,150.26,150.25,0.8040888]
[1718283030564,120.68,150.26,150.25,0.8040888]
[1718283031505,165.68,150.26,150.25,0.8040888]
[1718283033089,195.68,150.26,150.25,0.8040888]
[1718283033484,215.64,150.26,150.25,0.8040888]
[1718283033685,222.1451,150.26,150.25,0.6240888]
[1718283034597,100.0,150.18,150.11,15.6955]
[1718283034772,20.0,150.17,150.11,15.6955]
[1718283035164,100.0,150.16,150.11,15.6955]
[1718283035364,100.17,150.16,150.1,9.82553366]
[1718283036692,100.0,150.14,150.1,9.82553366]
[1718283036874,100.0,150.12,150.1,9.82553366]
[1718283037497,100.0,150.14,150.1,9.82553366]
[1718283037690,100.17,150.14,150.1,9.82553366]
[1718283037872,100.0,150.12,150.1,9.82553366]
[1718283038470,20.0,150.11,150.1,9.82553366]
[1718283039397,20.34,150.11,150.1,9.82553366]
[1718283039702,20.68,150.11,150.1,9.82553366]
[1718283039873,65.68,150.11,150.1,9.82553366]
[1718283040067,65.68,150.11,150.02,22.1219]
[1718283040068,100.0,150.08,150.02,22.1219]
[1718283040294,100.0,150.06,150.0,50.0]
[1718283041196,0.17,150.1,150.0,50.0]
[1718283041409,100.0,150.1,150.0,52.4666]
[1718283041577,100.0,150.1,150.01,20.0]
[1718283041777,100.0,150.07,150.0,50.0]
[1718283042320,100.0,150.03,150.0,50.0]
[1718283042473,100.17,150.01,150.0,50.0]
[1718283042788,100.34,150.01,150.0,50.0]
[1718283042990,120.51,150.01,150.0,50.0]
[1718283043387,220.68,150.01,150.0,46.35715513]
[1718283043590,265.68,150.01,150.0,46.35715513]
[1718283044003,265.68,150.01,150.0,26.35715513]
[1718283044196,265.68,150.01,150.0,21.15715513]
[1718283044584,280.8562,150.01,150.0,21.15715513]
[1718283045006,180.8562,150.01,150.0,21.15715513]
[1718283045210,120.0,150.01,150.0,21.15715513]
[1718283046111,220.0,150.01,150.0,21.15715513]
[1718283046281,220.0,150.01,150.0,1.15715513]
[1718283046602,220.0,150.01,149.88,25.78046036]
[1718283046603,100.0,149.91,149.88,9.35986036]
[1718283047009,20.0,149.9,149.88,9.35986036]
[1718283047483,100.0,149.89,149.88,9.35986036]
[1718283047685,120.0,149.89,149.88,9.35986036]
[1718283047987,0.17,149.91,149.88,9.35986036]
[1718283048187,100.0,149.9,149.88,9.35986036]
[1718283048381,0.34,149.89,149.88,9.35986036]
[1718283048604,0.51,149.89,149.88,9.35986036]
[1718283048818,100.0,149.87,149.8,0.8040888]
[1718283048984,20.0,149.86,149.8,0.8040888]
[1718283049185,100.0,149.91,149.8,0.8040888]
[1718283049479,100.0,149.89,149.8,0.8040888]
[1718283049683,100.0,149.87,149.8,0.8040888]
[1718283049982,100.0,149.85,149.8,0.8040888]
[1718283050403,100.0,149.83,149.8,0.8040888]
[1718283050610,0.17,149.86,149.8,0.8040888]
[1718283050782,100.0,149.85,149.8,0.8040888]
[1718283050979,0.34,149.84,149.8,0.8040888]
[1718283051291,0.17,149.84,149.8,0.8040888]
[1718283051498,100.0,149.89,149.8,0.8040888]
[1718283051695,106.88421537,149.91,149.8,0.8040888]
[1718283052004,106.88421537,149.91,149.81,2.4697]
[1718283052204,100.0,149.93,149.8,0.8040888]
[1718283052427,100.0,149.93,149.81,0.68]
[1718283052590,8.1187282,149.97,149.85,2.4691]
[1718283052591,100.0,149.95,149.85,2.4691]
[1718283052780,100.0,149.95,149.84,0.17]
[1718283052980,100.0,149.95,149.84,45.68]
[1718283053181,100.0,149.96,149.85,20.0]
[1718283053409,100.0,149.96,149.86,47.6388]
[1718283053621,259.4,150.0,149.88,21.906]
[1718283053793,259.4,150.0,149.91,2.4679]
[1718283054016,100.0,150.01,149.89,65.17]
[1718283054494,100.0,149.99,149.89,20.0]
[1718283054689,100.0,149.99,149.88,21.906]
[1718283054995,100.0,149.99,149.89,20.0]
[1718283055298,100.0,149.99,149.9,2.4682]
[1718283055500,100.0,149.99,149.91,2.4681]
[1718283055746,100.0,149.99,149.9,45.0]
[1718283056008,100.0,149.99,149.89,20.0]
[1718283056009,100.0,149.94,149.88,21.906]
[1718283056690,100.0,149.98,149.88,24.3745]
[1718283056894,100.0,149.96,149.88,21.906]
[1718283057093,20.0,149.97,149.88,21.906]
[1718283057094,100.0,149.94,149.88,21.906]
[1718283057614,100.0,149.92,149.88,21.906]
[1718283058593,100.0,149.9,149.84,21.7161]
[1718283059186,100.0,149.92,149.84,21.7161]
[1718283060117,100.0,149.94,149.84,21.7161]
[1718283060308,100.0,149.96,149.85,0.17]
[1718283060613,100.0,149.96,149.85,50.2782]
[1718283060796,100.0,149.96,149.87,2.4687]
[1718283061002,100.0,149.96,149.86,2.4689]
[1718283061552,100.0,149.96,149.87,2.4687]
[1718283061821,100.0,149.94,149.85,47.469]
[1718283061992,100.0,149.94,149.84,21.7161]
[1718283062189,100.0,149.91,149.84,21.7161]
[1718283062416,100.0,149.93,149.84,21.7161]
[1718283062715,100.0,149.92,149.84,21.7161]
[1718283063412,100.0,149.9,149.84,21.7161]
[1718283063627,100.0,149.88,149.84,21.7161]
[1718283063923,100.0,149.86,149.8,23.8315888]
[1718283064132,100.0,149.82,149.8,0.8040888]
[1718283064498,20.34,149.81,149.8,0.8040888]
[1718283064715,100.0,149.82,149.8,0.8040888]
[1718283064923,106.83811421,149.82,149.8,0.8040888]
[1718283065222,100.0,149.88,149.81,16.5781]
[1718283065443,100.0,149.92,149.81,19.0478]
[1718283065646,6.83970877,149.88,149.81,16.5781]
[1718283065815,6.83970877,149.88,149.82,2.4696]
[1718283066018,100.0,149.89,149.81,16.5781]
[1718283066215,6.85666625,149.91,149.81,16.5781]
[1718283066447,100.0,149.89,149.81,16.5781]
[1718283066762,100.0,149.93,149.81,16.5781]
[1718283066921,100.0,149.93,149.82,45.0]
[1718283067262,100.0,149.95,149.84,2.4692]
[1718283067560,100.0,149.97,149.85,6.2063]
[1718283067718,100.0,149.97,149.87,2.4687]
[1718283068048,359.4,150.01,149.88,0.34]
[1718283068222,100.0,150.03,149.89,6.001]
[1718283068546,286.084423,150.06,149.96,6.001]
[1718283068730,26.684423,150.06,149.97,0.17]
[1718283069082,100.0,150.13,149.99,0.17]
[1718283069258,6.85206244,150.1,150.02,2.4662]
[1718283069456,100.0,150.15,150.01,0.17]
[1718283069670,100.0,150.15,150.01,95.53]
[1718283069941,100.0,150.2,150.08,6.2048]
[1718283070144,100.0,150.2,150.09,45.0]
[1718283070320,6.85152281,150.19,150.1,0.34]
[1718283070519,6.85152281,150.19,150.11,0.17]
[1718283070722,100.0,150.28,150.15,2.4641]
[1718283070940,100.0,150.23,150.12,15.8901]
[1718283071137,100.0,150.25,150.13,47.4645]
[1718283071443,100.0,150.22,150.12,15.8901]
[1718283071655,100.0,150.19,150.12,15.8901]
[1718283071843,6.85132818,150.27,150.05,16.3468]
[1718283071844,100.0,150.14,150.05,16.3468]
[1718283072143,100.0,150.16,150.05,16.3468]
[1718283072351,100.0,150.13,150.05,16.3468]
[1718283072871,100.0,150.14,150.05,16.3468]
[1718283073032,100.0,150.21,150.05,16.3468]
[1718283073240,136.68132818,150.27,150.06,39.83]
[1718283073241,100.0,150.23,150.06,39.83]
[1718283073455,100.0,150.25,150.08,12.3266]
[1718283073760,100.0,150.26,150.14,6.0602]
[1718283073942,100.0,150.24,150.15,45.0]
[1718283074145,100.0,150.26,150.14,6.0602]
[1718283074455,100.0,150.26,150.15,45.0]
[1718283074649,100.0,150.24,150.14,6.0602]
[1718283074857,100.0,150.22,150.14,6.0602]
[1718283075158,100.0,150.24,150.14,6.0602]
[1718283075537,100.0,150.26,150.15,45.0]
[1718283075738,6.85132818,150.27,150.15,45.0]
[1718283075947,100.0,150.28,150.17,2.4637]
[1718283076257,100.0,150.28,150.16,20.0]
[1718283076460,100.0,150.28,150.17,45.0]
[1718283076639,100.0,150.28,150.17,47.4638]
[1718283076843,100.0,150.3,150.18,2.4636]
[1718283077055,100.0,150.26,150.17,45.0]
[1718283077341,100.0,150.28,150.17,45.0]
[1718283077545,100.0,150.28,150.17,47.4638]
[1718283077750,106.85195661,150.29,150.18,2.4636]
[1718283077931,106.85195661,150.29,150.17,45.0]
[1718283078138,100.0,150.26,150.16,20.0]
[1718283078341,100.0,150.26,150.15,20.0]
[1718283079247,6.85195661,150.29,150.15,20.0]
[1718283079248,100.0,150.28,150.15,20.0]
[1718283079465,100.0,150.28,150.16,2.4639]
[1718283079768,100.0,150.28,150.16,2.464]
[1718283079963,100.0,150.28,150.16,45.0]
[1718283080348,100.0,150.28,150.18,2.4637]
[1718283080840,0.8040888,150.32,150.19,0.17]
[1718283081040,100.0,150.31,150.19,45.68]
[1718283081370,100.0,150.29,150.19,45.0]
[1718283081581,100.0,150.27,150.18,16.5926]
[1718283081761,100.0,150.23,150.14,6.0602]
[1718283082063,100.0,150.19,150.11,15.1023]
[1718283082257,100.0,150.17,150.11,15.1023]
[1718283082467,0.17,150.14,150.07,6.6216]
[1718283082667,0.17,150.16,150.07,6.6216]
[1718283082960,100.0,150.21,150.07,6.6216]
[1718283083139,0.17,150.18,150.07,6.6216]
[1718283083342,0.17,150.18,150.08,2.4653]
[1718283083557,100.17,150.22,150.07,6.6216]
[1718283083739,810.7,150.27,150.09,9.8607]
[1718283083740,100.0,150.23,150.09,9.8607]
[1718283083939,100.0,150.23,150.11,2.4648]
[1718283084135,645.7,150.27,150.15,2.4641]
[1718283084367,100.0,150.24,150.09,2.4651]
[1718283084544,100.0,150.24,150.08,20.0]
[1718283084744,100.0,150.26,150.15,2.4641]
[1718283085340,100.0,150.29,150.15,4.9282]
[1718283085653,100.0,150.29,150.17,2.4638]
[1718283085963,100.0,150.29,150.17,16.269]
[1718283086265,486.3,150.31,150.19,2.4633]
[1718283086469,0.8040888,150.32,150.2,6.9197]
[1718283086679,0.8040888,150.32,150.23,2.4627]
[1718283086965,0.8040888,150.32,150.21,65.0]
[1718283087147,100.0,150.31,150.21,20.0]
[1718283087348,0.8040888,150.32,150.22,0.17]
[1718283087562,100.0,150.31,150.21,20.0]
[1718283087878,100.0,150.29,150.21,20.0]
[1718283088074,100.0,150.31,150.2,6.5797]
[1718283088553,100.0,150.27,150.2,6.5797]
[1718283089456,0.34,150.28,150.2,6.5797]
[1718283089671,20.34,150.28,150.2,6.5797]
[1718283089976,0.17,150.26,150.17,16.269]
[1718283090278,0.17,150.22,150.17,16.269]
[1718283090480,100.0,150.21,150.14,6.4646]
[1718283090651,0.17,150.2,150.14,6.4646]
[1718283090858,100.0,150.19,150.1,16.6299]
[1718283091594,0.17,150.16,150.1,16.6299]
[1718283091774,100.0,150.15,150.08,6.2505]
[1718283091984,0.34,150.14,150.03,18.1283]
[1718283092157,0.17,150.12,150.03,15.6622]
[1718283092482,100.0,150.13,150.03,15.6622]
[1718283092690,0.17,150.12,150.03,15.6622]
[1718283092993,100.0,150.08,150.01,6.0351]
[1718283093285,0.17,150.07,150.01,6.0351]
[1718283093453,0.51,150.07,149.96,17.8922]
[1718283093650,0.51,150.07,149.96,15.425]
[1718283093651,0.17,150.07,149.96,15.425]
[1718283093960,0.17,150.09,149.97,4.9342]
[1718283094170,100.0,150.08,149.97,2.467]
[1718283094487,0.51,150.07,149.96,15.425]
[1718283094665,0.51,150.07,149.97,20.0]
[1718283094979,0.17,150.09,149.97,20.0]
[1718283095188,120.0,150.12,149.97,20.0]
[1718283095356,100.0,150.16,150.0,29.83]
[1718283095556,100.0,150.16,150.01,20.0]
[1718283095782,100.0,150.12,149.98,0.17]
[1718283096080,100.0,150.16,150.03,2.466]
[1718283096259,100.0,150.11,150.0,0.17]
[1718283096451,100.0,150.15,150.0,0.17]
[1718283096650,20.0,150.14,150.03,2.466]
[1718283096851,0.34,150.13,150.03,2.466]
[1718283097281,20.0,150.14,150.02,45.17]
[1718283097489,100.0,150.17,150.06,2.4656]
[1718283097779,100.0,150.15,150.05,0.17]
[1718283097956,100.0,150.15,150.04,47.6359]
[1718283098170,100.0,150.15,150.05,20.0]
[1718283098694,100.0,150.11,150.0,2.4665]
[1718283098865,100.0,150.11,150.0,65.0]
[1718283099056,100.0,150.13,150.0,65.0]
[1718283099259,20.0,150.14,150.02,4.9326]
[1718283099582,20.0,150.14,150.03,47.4661]
[1718283099889,20.0,150.14,150.04,2.4659]
[1718283100392,100.17,150.15,150.04,20.0]
[1718283100592,0.17,150.14,150.04,20.0]
[1718283100760,100.0,150.13,150.02,0.17]
[1718283100959,20.51,150.14,149.97,7.4011]
[1718283100960,0.17,150.1,150.0,2.6366]
[1718283101177,0.17,150.1,149.97,29.84]
[1718283101385,0.34,150.1,149.99,2.4667]
[1718283101571,0.34,150.1,150.0,2.4666]
[1718283101770,0.34,150.1,149.98,2.4668]
[1718283102084,0.17,150.08,149.97,2.467]
[1718283102291,0.17,150.1,149.97,2.467]
[1718283102292,0.17,150.1,149.97,4.9343]
[1718283102588,0.17,150.1,149.96,15.425]
[1718283102589,0.17,150.08,149.96,15.425]
[1718283102981,0.34,150.08,149.97,2.467]
[1718283103394,20.34,150.1,149.99,2.4668]
[1718283103583,20.0,150.1,150.01,2.4663]
[1718283103898,0.17,150.1,150.01,2.4663]
[1718283104068,20.0,150.12,150.02,0.17]
[1718283104275,20.0,150.12,150.03,2.466]
[1718283104570,100.0,150.13,150.02,45.0]
[1718283104774,100.0,150.13,150.03,20.0]
[1718283105380,100.0,150.13,150.01,2.4664]
[1718283105897,20.0,150.14,150.04,2.4659]
[1718283106084,100.17,150.16,150.04,2.4659]
[1718283106289,100.17,150.16,150.05,2.4657]
[1718283106290,0.17,150.15,150.05,2.4657]
[1718283106787,6.85353504,150.17,150.06,0.17]
[1718283106989,100.0,150.16,150.04,20.0]
[1718283107196,100.0,150.11,149.96,32.6955]
[1718283107365,100.0,150.11,149.99,2.4666]
[1718283107570,100.0,150.11,149.97,4.9342]
[1718283107571,100.0,150.11,150.0,2.4665]
[1718283107768,100.0,150.11,149.97,12.3355]
[1718283107973,0.17,150.1,149.96,37.6299]
[1718283108177,100.0,150.08,149.96,15.425]
[1718283108387,100.0,150.08,149.96,17.8922]
[1718283108692,100.0,150.08,149.98,2.4669]
[1718283108864,0.17,150.09,149.99,2.4667]
[1718283109070,20.17,150.09,149.99,2.4667]
[1718283109499,20.17,150.09,149.98,2.4669]
[1718283109705,20.0,150.09,149.98,2.4669]
[1718283110967,20.0,150.09,149.98,45.0]
[1718283111167,20.0,150.09,149.98,47.4669]
[1718283111368,20.0,150.09,149.98,45.0]
[1718283111781,100.51,150.1,149.98,45.0]
[1718283111985,0.17,150.09,149.97,20.0]
[1718283112292,100.0,150.13,149.97,20.0]
[1718283112498,6.85359959,150.16,149.97,20.0]
[1718283112499,100.0,150.15,149.97,20.0]
[1718283112685,6.85359959,150.16,150.05,2.4658]
[1718283112879,100.0,150.15,150.05,2.4658]
[1718283113083,100.0,150.15,150.04,2.4659]
[1718283113283,100.0,150.15,150.03,45.0]
[1718283113497,100.0,150.12,149.99,0.17]
[1718283113670,100.0,150.12,150.01,20.0]
[1718283113874,100.0,150.12,149.99,48.1467]
[1718283114073,100.0,150.1,150.0,20.0]
[1718283114301,100.0,150.1,150.0,22.4666]
[1718283114602,100.0,150.1,149.99,2.4667]
[1718283115171,100.0,150.1,149.98,22.4669]
[1718283115370,100.0,150.1,150.0,2.4666]
[1718283115701,0.17,150.11,149.98,4.9338]
[1718283115904,100.17,150.12,150.01,2.4664]
[1718283116288,100.17,150.12,150.0,2.4666]
[1718283116492,100.17,150.12,150.01,2.4663]
[1718283116677,100.17,150.12,150.01,45.0]
[1718283117002,100.17,150.12,149.99,20.0]
[1718283117003,100.0,150.1,149.99,20.0]
[1718283117183,100.0,150.08,149.97,20.0]
[1718283117382,100.0,150.08,149.97,22.467]
[1718283117900,100.0,150.1,150.0,2.4666]
[1718283118618,100.34,150.12,150.01,2.4664]
[1718283118909,20.0,150.11,150.01,2.4664]
[1718283119071,309.22,150.2,149.99,0.17]
[1718283119072,100.0,150.14,150.03,2.466]
[1718283119379,100.0,150.12,150.0,2.4665]
[1718283119699,20.0,150.13,150.03,2.4661]
[1718283120000,20.0,150.13,149.99,17.6076]
[1718283120184,20.0,150.13,150.01,2.4664]
[1718283120372,100.0,150.11,150.0,65.0]
[1718283120570,100.0,150.11,150.0,67.4665]
[1718283120880,100.0,150.11,150.0,45.0]
[1718283121103,100.0,150.09,149.96,15.425]
[1718283121409,100.0,150.09,149.97,45.0]
[1718283121608,100.0,150.09,149.97,47.467]
[1718283121770,100.0,150.09,149.98,2.4669]
[1718283122175,100.0,150.09,149.97,47.4671]
[1718283122371,0.34,150.1,149.96,15.425]
[1718283122372,100.0,150.07,149.96,15.425]
[1718283122596,100.0,150.05,149.96,15.425]
[1718283122776,100.0,150.03,149.91,6.4563]
[1718283122990,100.0,150.05,149.91,6.4563]
[1718283123171,100.0,150.05,149.93,2.4677]
[1718283123172,120.17,150.05,149.93,2.4677]
[1718283123377,100.0,150.03,149.92,2.4678]
[1718283123575,100.0,150.01,149.91,6.4563]
[1718283123797,0.51,150.04,149.91,18.7968]
[1718283123996,100.0,150.03,149.93,2.4677]
[1718283124592,120.17,150.05,149.91,13.8605]
[1718283124799,100.0,150.06,149.92,4.9357]
[1718283125000,100.0,150.06,149.91,26.4563]
[1718283125199,100.0,150.06,149.95,2.4674]
[1718283125502,100.0,150.03,149.92,20.0]
[1718283125694,100.0,150.01,149.91,8.9243]
[1718283125894,100.0,150.01,149.91,6.4563]
[1718283126913,100.0,150.01,149.91,8.9244]
[1718283127091,100.0,150.01,149.91,6.4563]
[1718283127406,100.0,149.99,149.9,15.4447]
[1718283127997,100.0,149.97,149.86,6.1373]
[1718283128687,20.17,149.98,149.88,2.4685]
[1718283128885,20.17,149.98,149.86,6.1373]
[1718283128886,100.0,149.97,149.86,6.1373]
[1718283129083,100.0,149.97,149.86,8.6061]
[1718283129886,100.0,149.97,149.87,2.4687]
[1718283130089,100.0,149.97,149.87,47.4687]
[1718283130291,100.0,149.99,149.88,2.4686]
[1718283130500,100.0,150.01,149.9,2.4681]
[1718283130820,412.45,150.07,149.9,7.4049]
[1718283130821,100.0,150.03,149.9,7.4049]
[1718283131033,100.0,150.05,149.93,4.9356]
[1718283131187,100.0,150.05,149.94,2.4675]
[1718283131389,100.0,150.03,149.93,2.4677]
[1718283131619,100.0,150.03,149.92,45.0]
[1718283132113,6.85860751,150.05,149.94,16.5615]
[1718283132321,100.0,150.07,149.97,2.467]
[1718283132526,100.0,150.07,149.95,47.4674]
[1718283133097,100.0,150.05,149.95,45.0]
[1718283133298,106.85746997,150.07,149.96,6.7063]
[1718283133522,386.3,150.11,149.97,45.0]
[1718283133523,100.0,150.1,149.97,45.0]
[1718283133934,106.2448,150.12,149.99,2.4668]
[1718283134099,106.2448,150.12,149.99,0.17]
[1718283134299,106.2448,150.12,150.01,2.4664]
[1718283134532,259.4,150.14,150.02,2.4662]